[Event "Swiss National League-A 2024"]
[Site "Luzern"]
[Date "2024.10.13"]
[Round "9.33"]
[White "Stojanovic, Mihajlo"]
[Black "Prusikin, Michael"]
[Result "1/2-1/2"]
[ECO "D54"]
[WhiteElo "2424"]
[BlackElo "2516"]
[Annotator "TA"]
[PlyCount "60"]
[EventDate "2023.10.03"]
[EventType "team-tourn"]
[EventCountry "SUI"]
[SourceTitle "playchess.com"]
[Source "ChessBase"]
[SourceQuality "1"]
[TimeControl "40/8400+30:20/3000+30:900+30"]

{[%evp 20,60,0,0,6,0,0,0,51,0,0,0,0,0,0,0,0,0,0,-28,-28,-28,0,0,0,-54,-39,-20,-17,-27,-27,-27,-13,-28,-28,-29,-27,-27,0,-33,0,-35,0]} 1. d4 {[%emt 0:40:06]} d5 {[%emt 0:40:04]} 2. c4 {[%emt 0:00:08]} e6 {[%emt 0:00:04]} 3. Nc3 {[%emt 0:00:06]} Nf6 {[%emt 0:00:06]} 4. Bg5 {[%emt 0:00:08]} Be7 {[%emt 0:00:50]} 5. e3 {[%emt 0:00:09]} h6 {[%emt 0:00:28]} 6. Bh4 {[%emt 0:00:06]} O-O {[%emt 0:00:11]} 7. Rc1 {[%emt 0:00:10]} b6 {[%emt 0:02:19]} 8. cxd5 {[%emt 0:00:10]} Nxd5 {[%emt 0:00:20]} 9. Nxd5 {[%emt 0:00:21]} exd5 {[%emt 0:00:13]} 10. Bxe7 {[%emt 0:00:10]} Qxe7 {[%emt 0:00:03]} 11. Be2 {[%emt 0:00:09]} c5 {[%emt 0:13:28]} 12. Bf3 {[%emt 0:00:57]} Rd8 {[%emt 0:04:13]} 13. Ne2 {[%emt 0:05:48]} Ba6 {[%emt 0:06:24]} ({Besser ist} 13... Nc6 $11) 14. O-O {[%emt 0:16:34]} (14. Qa4 $14) 14... Nc6 $11 {[%emt 0:03:35]} 15. Re1 {[%emt 0:25:07]} Bxe2 {[%emt 0:22:06]} 16. Rxe2 {[%emt 0:00:21]} c4 {[%emt 0:00:26]} 17. b3 {[%emt 0:00:52]} b5 {[%emt 0:05:01]} 18. bxc4 {[%emt 0:00:25]} bxc4 {[%emt 0:00:03]} 19. e4 {[%emt 0:00:26]} Qf6 {[%emt 0:03:40]} 20. Rd2 {[%emt 0:14:43]} Rac8 {[%emt 0:02:18]} (20... Nxd4 $5 21. exd5 (21. Rxd4 dxe4 22. Rcxc4 exf3 $15) 21... Nxf3+ 22. Qxf3 Qxf3 23. gxf3 Rac8 $16) 21. exd5 {[%emt 0:12:39]} Nb4 {[%emt 0:00:53]} 22. Rc3 {[%emt 0:05:51] Pariert Nd3.} (22. Qa4 $11 c3 (22... Nxd5 23. Bxd5 Rxd5 24. Rxc4 $16) 23. Rdd1 Nxd5 24. Qb3) 22... Nxd5 {[%emt 0:07:10]} (22... Nd3 {ist vielschichtiger.} 23. Qf1 Qxd4 24. Rcc2 Rb8) 23. Bxd5 {[%emt 0:00:10]} Rxd5 {[%emt 0:00:02]} 24. g3 {[%emt 0:02:45]} h5 {[%emt 0:02:35]} 25. h4 {[%emt 0:03:08]} g6 {[%emt 0:00:24]} 26. Kg2 {[%emt 0:01:25]} Qd6 {[%emt 0:01:14]} 27. Rcc2 {[%emt 0:01:19]} Rc7 {[%emt 0:01:39]} 28. Rc3 {[%emt 0:00:10]} Rc8 {[%emt 0:01:01]} 29. Rcc2 {[%emt 0:00:03]} Rc7 {[%emt 0:00:06]} 30. Rc3 {[%emt 0:00:07]} Rc8 {[%emt 0:00:07] Gewichteter Fehlerwert: Weiß=0.10 (sehr präzise) /Schwarz=0.11 (sehr präzise) .  Fehler:       	Weiß=2     	Schwarz=1     Ungenau:       	Weiß=1     	Schwarz=2     OK:         	Weiß=8     	Schwarz=8     Bester:       	---       	Schwarz=1} 1/2-1/2

[Event "Swiss National League-A 2024"]
[Site "Luzern"]
[Date "2024.10.13"]
[Round "9.34"]
[White "Peng, Li Min"]
[Black "Bogner, Sebastian"]
[Result "1/2-1/2"]
[ECO "C47"]
[WhiteElo "2496"]
[BlackElo "2539"]
[Annotator "TA"]
[PlyCount "45"]
[EventDate "2023.10.03"]
[EventType "team-tourn"]
[EventCountry "SUI"]
[SourceTitle "playchess.com"]
[Source "ChessBase"]
[SourceQuality "1"]
[TimeControl "40/8400+30:20/3000+30:900+30"]

{[%evp 9,45,20,14,25,28,10,2,10,12,0,0,0,0,0,11,0,9,7,8,0,0,0,0,0,0,0,0,0,0,0,0,0,0,0,0,0,0,0]} 1. e4 {[%emt 0:40:02]} e5 {[%emt 0:40:16]} 2. Nf3 {[%emt 0:00:15]} Nc6 {[%emt 0:00:19]} 3. Nc3 {[%emt 0:00:33]} Nf6 {[%emt 0:00:06]} 4. h3 {[%emt 0:00:40]} d5 {[%emt 0:02:10]} 5. exd5 {[%emt 0:00:08]} Nxd5 {[%emt 0:00:07]} 6. Bb5 {[%emt 0:00:07]} Nxc3 {[%emt 0:00:10]} 7. bxc3 {[%emt 0:00:07]} Bd6 {[%emt 0:00:10] The position is equal.} 8. O-O {[%emt 0:00:15]} O-O {[%emt 0:00:41]} 9. Re1 {[%emt 0:00:15]} Qf6 {[%emt 0:11:27]} 10. d4 {[%emt 0:00:08]} exd4 $1 {[%emt 0:00:23]} 11. cxd4 {[%emt 0:00:05]} Bf5 {[%emt 0:06:26]} 12. Rb1 {[%emt 0:08:35]} a6 {[%emt 0:10:04]} 13. Bf1 {[%emt 0:02:20]} b5 {[%emt 0:01:09]} 14. d5 {[%emt 0:06:54][%cal Oc1b2] [#] Bb2! would now be deadly.} (14. Bg5 $5 Qg6 $8 15. Qd2 $14) 14... Nb4 {[%emt 0:03:56]} 15. Bb2 {[%emt 0:02:56]} Bxc2 {[%emt 0:05:58]} 16. Bxf6 {[%emt 0:00:27]} Bxd1 {[%emt 0:00:08]} 17. Rexd1 {[%emt 0:00:04]} gxf6 {[%emt 0:00:08]} 18. Rb2 {[%emt 0:00:04]} Rad8 {[%emt 0:08:18]} 19. Rbd2 {[%emt 0:07:18]} Bf4 {[%emt 0:10:27]} 20. Rd4 {[%emt 0:00:42][%csl LRb4,LRf4]} Bd6 {[%emt 0:00:08]} (20... Nxa2 $2 {is the wrong capture.} 21. Rxf4 Nc3 22. Rc1 Nxd5 23. Rg4+ Kh8 24. Rc5 $18) 21. R4d2 {[%emt 0:01:28]} Bf4 {[%emt 0:00:32]} 22. Rd4 {[%emt 0:00:07][%csl LRb4,LRf4]} Bd6 {[%emt 0:00:07]} (22... Nxa2 $2 {loses.} 23. Rxf4 Nc3 24. Rc1 Nxd5 25. Rd4 $18) 23. R4d2 {[%emt 0:00:33] An uneventful encounter.   Weighted Error Value: White=0.02 (flawless) /Black=0.01 (flawless) .  OK:         	White=7     	Black=12     Best:        	White=1     	---        Strong:       	---       	Black=1} 1/2-1/2

[Event "Swiss National League-A 2024"]
[Site "Luzern"]
[Date "2024.10.13"]
[Round "9.35"]
[White "Degtiarev, Evgeny"]
[Black "Moor, Roger"]
[Result "1/2-1/2"]
[ECO "D85"]
[WhiteElo "2393"]
[BlackElo "2329"]
[Annotator "RC"]
[PlyCount "129"]
[EventDate "2023.10.03"]
[EventType "team-tourn"]
[EventCountry "SUI"]
[SourceTitle "playchess.com"]
[Source "ChessBase"]
[SourceQuality "1"]
[TimeControl "40/8400+30:20/3000+30:900+30"]

1. d4 {[%emt 0:40:02]} Nf6 {[%emt 0:40:08]} 2. c4 {[%emt 0:00:12]} g6 {[%emt 0:00:06]} 3. Nc3 {[%emt 0:00:28]} d5 {[%emt 0:00:10]} 4. cxd5 {[%emt 0:00:07]} Nxd5 {[%emt 0:00:05]} 5. e4 {[%emt 0:00:38]} Nxc3 {[%emt 0:00:07]} 6. bxc3 {[%emt 0:00:03]} Bg7 {[%emt 0:00:08]} 7. Qa4+ {[%emt 0:04:34]} Qd7 {[%emt 0:12:57]} 8. Qa3 {[%emt 0:01:33]} O-O {[%emt 0:01:04]} 9. Nf3 {[%emt 0:08:14]} b6 {[%emt 0:01:45]} 10. Be2 {[%emt 0:30:46]} Bb7 {[%emt 0:02:14]} 11. e5 {[%emt 0:00:47]} c5 {[%emt 0:05:46]} 12. Be3 {[%emt 0:00:22]} cxd4 {[%emt 0:08:54]} 13. cxd4 {[%emt 0:00:04]} Nc6 {[%emt 0:00:06]} 14. h4 {[%emt 0:03:46]} a5 {[%emt 0:07:32]} 15. Qb3 {[%emt 0:06:49]} Nb4 {[%emt 0:17:15]} 16. a3 {[%emt 0:00:07]} Nd5 {[%emt 0:02:52]} 17. h5 {[%emt 0:07:19]} Rfc8 {[%emt 0:02:56]} 18. hxg6 {[%emt 0:01:35]} hxg6 {[%emt 0:00:36]} 19. Bd2 {[%emt 0:06:12]} Qf5 {[%emt 0:20:39]} 20. Bd3 {[%emt 0:10:09]} Qg4 {[%emt 0:02:51]} 21. Rh4 {[%emt 0:01:00]} Qxg2 {[%emt 0:02:09]} 22. Bf1 {[%emt 0:01:15]} a4 {[%emt 0:02:50]} 23. Qd1 {[%emt 0:00:22]} Ne3 {[%emt 0:01:48]} 24. Bxg2 {[%emt 0:00:13]} Nxg2+ {[%emt 0:00:08]} 25. Kf1 {[%emt 0:00:55]} Bxf3 {[%emt 0:00:13]} 26. Rh8+ {[%emt 0:01:34]} Bxh8 {[%emt 0:00:30]} 27. Qxf3 {[%emt 0:00:04]} Nh4 {[%emt 0:00:09]} 28. Qb7 {[%emt 0:02:29]} Nf5 {[%emt 0:00:52]} 29. Rc1 {[%emt 0:04:01]} Rd8 {[%emt 0:05:18]} 30. Be3 {[%emt 0:16:18]} Rab8 {[%emt 0:00:57]} 31. Qe4 {[%emt 0:00:54]} e6 {[%emt 0:01:42]} 32. Rc7 {[%emt 0:00:11]} Bg7 {[%emt 0:02:09]} 33. Ra7 {[%emt 0:00:32]} Rd5 {[%emt 0:06:22]} 34. Rxa4 {[%emt 0:01:22]} b5 {[%emt 0:00:07]} 35. Ra7 {[%emt 0:00:42]} Rc8 {[%emt 0:00:33]} 36. Qb1 {[%emt 0:01:45]} Bf8 {[%emt 0:03:24]} 37. a4 {[%emt 0:00:14]} b4 {[%emt 0:00:19]} 38. a5 {[%emt 0:01:01]} Rc3 {[%emt 0:00:41]} 39. Bd2 {[%emt 0:00:20]} Rc4 {[%emt 0:00:33]} 40. Ra8 {[%emt 0:00:27]} Rcxd4 {[%emt 0:00:26]} 41. Bxb4 {[%emt 0:15:43]} Rd1+ {[%emt 0:03:44]} 42. Qxd1 {[%emt 0:00:05]} Rxd1+ {[%emt 0:00:03]} 43. Ke2 {[%emt 0:01:15]} Ra1 {[%emt 0:08:30]} 44. Kd3 {[%emt 0:10:35]} Rxa5 {[%emt 0:04:28]} 45. Bxa5 {[%emt 0:00:12]} Kg7 {[%emt 0:00:08]} 46. Kc4 {[%emt 0:02:09]} Be7 {[%emt 0:01:07]} 47. Bc3 {[%emt 0:00:59]} Bg5 {[%emt 0:03:55]} 48. Kc5 {[%emt 0:02:26]} Bh4 {[%emt 0:04:28]} 49. Ra2 {[%emt 0:01:06]} Be7+ {[%emt 0:01:36]} 50. Kc6 {[%emt 0:00:17]} g5 {[%emt 0:00:19]} 51. Ra8 {[%emt 0:05:26]} Kg6 {[%emt 0:02:09]} 52. Kd7 {[%emt 0:02:59]} Bc5 {[%emt 0:06:38]} 53. Rg8+ {[%emt 0:00:23]} Ng7 {[%emt 0:06:07]} 54. f3 {[%emt 0:00:07]} Ba3 {[%emt 0:02:38]} 55. Ra8 {[%emt 0:02:43]} Bc5 {[%emt 0:00:26]} 56. Ra5 {[%emt 0:00:51]} Bf8 {[%emt 0:00:58]} 57. Bd2 {[%emt 0:05:33]} Nf5 {[%emt 0:01:44]} 58. Ra1 {[%emt 0:01:47]} Bc5 {[%emt 0:00:39]} 59. Ra5 {[%emt 0:02:03]} Bd4 {[%emt 0:01:02]} 60. Ra4 {[%emt 0:03:26]} Bxe5 {[%emt 0:02:56]} 61. Rg4 {[%emt 0:15:10]} Bf6 {[%emt 0:16:54]} 62. Bxg5 {[%emt 0:00:00]} Bxg5 {[%emt 0:00:00]} 63. f4 {[%emt 0:00:00]} f6 {[%emt 0:00:00]} 64. fxg5 {[%emt 0:00:00]} fxg5 {[%emt 0:00:00]} 65. Kxe6 {[%emt 0:00:00]} 1/2-1/2

[Event "Swiss National League-A 2024"]
[Site "Luzern"]
[Date "2024.10.13"]
[Round "9.36"]
[White "Hochstrasser, Michael"]
[Black "Martins, David Pires Tavares"]
[Result "1/2-1/2"]
[ECO "A36"]
[WhiteElo "2316"]
[BlackElo "2410"]
[Annotator "TA"]
[PlyCount "70"]
[EventDate "2023.10.03"]
[EventType "team-tourn"]
[EventCountry "SUI"]
[SourceTitle "playchess.com"]
[Source "ChessBase"]
[SourceQuality "1"]
[TimeControl "40/8400+30:20/3000+30:900+30"]

{[%evp 14,70,2,0,0,4,10,0,0,0,16,-16,17,-28,7,9,35,-8,0,-10,0,0,0,0,0,0,0,0,0,0,0,0,0,0,0,0,0,0,0,0,0,0,0,0,0,0,15,5,22,10,12,3,10,0,0,0,6,0,0]} 1. e4 {[%emt 0:40:06]} d6 {[%emt 0:40:20]} 2. c4 {[%emt 0:03:53]} e5 {[%emt 0:01:11]} 3. Nc3 {[%emt 0:00:08]} c5 {[%emt 0:17:26]} 4. d3 {[%emt 0:06:24]} g6 {[%emt 0:00:51]} 5. g3 {[%emt 0:02:47]} Bg7 {[%emt 0:00:10]} 6. Bg2 {[%emt 0:07:16]} Nc6 {[%emt 0:00:51]} 7. Nge2 {[%emt 0:06:45]} Nge7 {[%emt 0:09:27]} 8. O-O {[%emt 0:00:55]} Be6 {[%emt 0:00:17]} 9. Nd5 {[%emt 0:04:35]} O-O {[%emt 0:01:33]} 10. Be3 {[%emt 0:04:08]} Qd7 {[%emt 0:03:22]} 11. Qd2 {[%emt 0:00:26]} Rab8 {[%emt 0:00:35]} 12. a3 {[%emt 0:28:31]} Nd4 {[%emt 0:03:44]} 13. Rab1 {[%emt 0:00:40]} Nec6 {[%emt 0:11:11]} 14. b4 {[%emt 0:01:51]} f5 {[%emt 0:05:07]} 15. f4 {[%emt 0:09:05]} (15. Nxd4 {simplifies} cxd4 16. Bg5 fxe4 17. dxe4 Nd8 18. Qd3) 15... fxe4 {[%emt 0:01:42] The position is equal.} 16. Bxe4 {[%emt 0:00:43]} Bh3 {[%emt 0:01:28]} (16... Bg4 {simplifies} 17. Bxd4 cxd4 18. Rbe1 Kh8) 17. Bg2 {[%emt 0:01:22]} Bxg2 {[%emt 0:00:22]} (17... exf4 {is more complex.} 18. Nexf4 Bxg2 19. Qxg2 Rbe8) 18. Kxg2 {[%emt 0:00:08]} exf4 {[%emt 0:17:50]} 19. Bxd4 {[%emt 0:18:37]} Nxd4 {[%emt 0:01:44]} 20. Nxd4 {[%emt 0:00:06]} Bxd4 {[%emt 0:00:18]} 21. Nxf4 {[%emt 0:02:39]} Rf7 {[%emt 0:00:40]} 22. Nd5 {[%emt 0:03:47]} Rbf8 {[%emt 0:00:24]} 23. bxc5 {[%emt 0:02:41]} dxc5 {[%emt 0:01:07]} ({Don't blunder} 23... Rf2+ $2 24. Rxf2 Bxf2 25. Rf1 Bxc5 26. Rxf8+ (26. Nf6+ Rxf6 27. Rxf6 d5 $18) 26... Kxf8 27. d4 Bxa3 28. Qh6+ (28. Qe3 Bb2 $18) 28... Qg7 29. Qe3 $18) 24. Rxf7 {[%emt 0:00:43]} Qxf7 {[%emt 0:00:11]} 25. Qe2 {[%emt 0:00:09] Against Qf3+} Qf2+ {[%emt 0:29:25]} ({Don't go for} 25... Qxd5+ $2 26. cxd5 Rf7 27. d6 $18 (27. Qe8+ Kg7 $18)) 26. Qxf2 {[%emt 0:00:09]} Rxf2+ $11 {[%emt 0:00:03][%mdl 4096] Endgame. KRB-KRN} 27. Kh3 {[%emt 0:00:07]} Rf7 {[%emt 0:00:04]} 28. Re1 {[%emt 0:00:50]} Kg7 {[%emt 0:00:23]} 29. a4 {[%emt 0:00:58]} Rd7 {[%emt 0:02:23]} 30. Kg4 {[%emt 0:03:00]} Bf6 {[%emt 0:00:11]} 31. Re4 {[%emt 0:01:51]} Bd8 {[%emt 0:00:21]} 32. Re8 {[%emt 0:00:35]} Kf7 {[%emt 0:00:08]} 33. Rh8 {[%emt 0:00:04]} Kg7 {[%emt 0:00:04]} 34. Re8 {[%emt 0:00:04]} Kf7 {[%emt 0:00:17]} 35. Rh8 {[%emt 0:00:12]} Kg7 {[%emt 0:00:19] An even fight not without its subleties.   Weighted Error Value: White=0.08 (flawless) /Black=0.06 (flawless) .  Inaccurate:     	White=3     	Black=3      OK:         	White=11    	Black=10     Best:        	White=1     	---} 1/2-1/2

[Event "Swiss National League-A 2024"]
[Site "Luzern"]
[Date "2024.10.13"]
[Round "9.37"]
[White "Maier, Christian"]
[Black "Gaehler, Marco"]
[Result "1-0"]
[ECO "A43"]
[WhiteElo "2228"]
[BlackElo "2312"]
[Annotator "RC"]
[PlyCount "41"]
[EventDate "2023.10.03"]
[EventType "team-tourn"]
[EventCountry "SUI"]
[SourceTitle "playchess.com"]
[Source "ChessBase"]
[SourceQuality "1"]
[TimeControl "40/8400+30:20/3000+30:900+30"]

1. d4 {[%emt 0:41:29]} Nf6 {[%emt 0:40:06]} 2. g3 {[%emt 0:00:28]} c5 {[%emt 0:01:00]} 3. Nf3 {[%emt 0:03:14]} cxd4 {[%emt 0:05:46]} 4. Nxd4 {[%emt 0:00:09]} Nc6 {[%emt 0:00:08]} 5. Bg2 {[%emt 0:00:17]} e5 {[%emt 0:00:37]} 6. Nb3 {[%emt 0:00:50]} d5 {[%emt 0:00:23]} 7. O-O {[%emt 0:00:18]} Be6 {[%emt 0:01:19]} 8. Bg5 {[%emt 0:07:44]} Bb4 {[%emt 0:11:41]} 9. c3 {[%emt 0:07:11]} Be7 {[%emt 0:01:07]} 10. N1d2 {[%emt 0:00:20]} a5 {[%emt 0:08:49]} 11. Bxf6 {[%emt 0:17:37]} gxf6 {[%emt 0:00:42]} 12. a4 {[%emt 0:00:45]} Qb6 {[%emt 0:03:59]} 13. e4 {[%emt 0:07:33]} dxe4 {[%emt 0:00:56]} 14. Bxe4 {[%emt 0:00:07]} f5 {[%emt 0:00:45]} 15. Bc2 {[%emt 0:01:04]} h5 {[%emt 0:02:52]} 16. Qe2 {[%emt 0:02:20]} h4 {[%emt 0:12:18]} 17. Qb5 {[%emt 0:00:54]} Qc7 {[%emt 0:01:29]} 18. Nc5 {[%emt 0:03:37]} b6 {[%emt 0:01:17]} 19. Nxe6 {[%emt 0:00:08]} fxe6 {[%emt 0:00:05]} 20. Nf3 {[%emt 0:01:25]} Kf7 {[%emt 0:08:44]} 21. Qxc6 {[%emt 0:00:22]} 1-0

[Event "Swiss National League-A 2024"]
[Site "Luzern"]
[Date "2024.10.13"]
[Round "9.38"]
[White "Fend, Juergen"]
[Black "Wyss, Jonas"]
[Result "0-1"]
[ECO "A13"]
[WhiteElo "2264"]
[BlackElo "2281"]
[Annotator "RC"]
[PlyCount "68"]
[EventDate "2023.10.03"]
[EventType "team-tourn"]
[EventCountry "SUI"]
[SourceTitle "playchess.com"]
[Source "ChessBase"]
[SourceQuality "1"]
[TimeControl "40/8400+30:20/3000+30:900+30"]

1. Nf3 {[%emt 0:00:16]} d5 {[%emt 0:44:37]} 2. e3 {[%emt 0:40:04]} Nf6 {[%emt 0:02:43]} 3. c4 {[%emt 0:01:31]} e6 {[%emt 0:01:15]} 4. b3 {[%emt 0:00:37]} Nbd7 {[%emt 0:03:14]} 5. Bb2 {[%emt 0:00:33]} Bd6 {[%emt 0:00:30]} 6. Nc3 {[%emt 0:04:38]} a6 {[%emt 0:04:13]} 7. Qc2 {[%emt 0:03:26]} O-O {[%emt 0:00:51]} 8. Be2 {[%emt 0:13:58]} Re8 {[%emt 0:02:32]} 9. g4 {[%emt 0:07:05]} dxc4 {[%emt 0:15:25]} 10. g5 {[%emt 0:15:04]} cxb3 {[%emt 0:04:01]} 11. Qxb3 {[%emt 0:00:26]} Nc5 {[%emt 0:07:00]} 12. Qc2 {[%emt 0:00:50]} Nd5 {[%emt 0:05:42]} 13. d4 {[%emt 0:04:23]} Nd7 {[%emt 0:05:34]} 14. Ne4 {[%emt 0:00:41]} Bb4+ {[%emt 0:02:58]} 15. Kf1 {[%emt 0:00:18]} b6 {[%emt 0:03:44]} 16. h4 {[%emt 0:00:25]} Bb7 {[%emt 0:05:09]} 17. g6 {[%emt 0:09:15]} fxg6 {[%emt 0:02:39]} 18. h5 {[%emt 0:05:48]} N7f6 {[%emt 0:05:55]} 19. hxg6 {[%emt 0:04:01]} h6 {[%emt 0:09:35]} 20. Ng3 {[%emt 0:03:08]} Rf8 {[%emt 0:02:33]} 21. Rh4 {[%emt 0:14:15]} Bd6 {[%emt 0:01:28]} 22. Ne4 {[%emt 0:04:14]} Nxe3+ {[%emt 0:05:35]} 23. fxe3 {[%emt 0:00:05]} Nd5 {[%emt 0:00:10]} 24. Kg1 {[%emt 0:03:13]} Rxf3 {[%emt 0:00:46]} 25. Bxf3 {[%emt 0:00:24]} Qxh4 {[%emt 0:00:23]} 26. Nxd6 {[%emt 0:02:02]} Qg5+ {[%emt 0:02:22]} 27. Kh2 {[%emt 0:01:50]} Qh4+ {[%emt 0:00:17]} 28. Kg1 {[%emt 0:00:14]} Qg5+ {[%emt 0:00:07]} 29. Kh2 {[%emt 0:00:06]} cxd6 {[%emt 0:01:02]} 30. Qe4 {[%emt 0:01:56]} Re8 {[%emt 0:04:34]} 31. Ba3 {[%emt 0:03:00]} Ba8 {[%emt 0:04:08]} 32. Rc1 {[%emt 0:02:58]} Nf6 {[%emt 0:02:17]} 33. Qxa8 {[%emt 0:01:18]} Rxa8 {[%emt 0:00:30]} 34. Bxa8 {[%emt 0:00:02]} Qh5+ {[%emt 0:01:22]} 0-1

[Event "Swiss National League-A 2024"]
[Site "Luzern"]
[Date "2024.10.13"]
[Round "9.39"]
[White "Rodriguez Polo, Mateo"]
[Black "Frey, Fabian"]
[Result "1/2-1/2"]
[ECO "A11"]
[WhiteElo "2196"]
[BlackElo "2179"]
[Annotator "RC"]
[PlyCount "94"]
[EventDate "2023.10.03"]
[EventType "team-tourn"]
[EventCountry "SUI"]
[SourceTitle "playchess.com"]
[Source "ChessBase"]
[SourceQuality "1"]
[TimeControl "40/8400+30:20/3000+30:900+30"]

1. Nf3 {[%emt 0:40:04]} d5 {[%emt 0:40:14]} 2. c4 {[%emt 0:00:04]} c6 {[%emt 0:00:05]} 3. g3 {[%emt 0:00:04]} Bg4 {[%emt 0:01:14]} 4. Ne5 {[%emt 0:00:57]} Bf5 {[%emt 0:02:25]} 5. Qb3 {[%emt 0:01:43]} Qb6 {[%emt 0:00:37]} 6. cxd5 {[%emt 0:00:15]} Qxb3 {[%emt 0:00:36]} 7. axb3 {[%emt 0:00:06]} Bxb1 {[%emt 0:04:01]} 8. Rxb1 {[%emt 0:00:37]} cxd5 {[%emt 0:00:01]} 9. e4 {[%emt 0:01:43]} e6 {[%emt 0:00:02]} 10. Bb5+ {[%emt 0:03:01]} Ke7 {[%emt 0:00:29]} 11. exd5 {[%emt 0:00:05]} exd5 {[%emt 0:00:27]} 12. d4 {[%emt 0:00:03]} f6 {[%emt 0:02:13]} 13. Nd3 {[%emt 0:01:09]} a6 {[%emt 0:02:46]} 14. Ra1 {[%emt 0:00:06]} Kf7 {[%emt 0:00:31]} 15. O-O {[%emt 0:21:30]} Bd6 {[%emt 0:03:55]} 16. Nc5 {[%emt 0:03:02]} Ra7 {[%emt 0:06:53]} 17. Be3 {[%emt 0:13:23]} Ne7 {[%emt 0:01:23]} 18. Be2 {[%emt 0:00:27]} h5 {[%emt 0:09:22]} 19. b4 {[%emt 0:09:06]} b6 {[%emt 0:15:32]} 20. Nxa6 {[%emt 0:05:49]} Nxa6 {[%emt 0:01:50]} 21. b5 {[%emt 0:01:56]} Rc7 {[%emt 0:12:07]} 22. bxa6 {[%emt 0:07:09]} Rc2 {[%emt 0:00:16]} 23. a7 {[%emt 0:02:17]} Rxe2 {[%emt 0:05:40]} 24. a8=Q {[%emt 0:00:33]} Rxa8 {[%emt 0:00:04]} 25. Rxa8 {[%emt 0:00:05]} Rxb2 {[%emt 0:00:31]} 26. Raa1 {[%emt 0:02:40]} b5 {[%emt 0:14:26]} 27. Rfb1 {[%emt 0:14:00]} Rxb1+ {[%emt 0:00:21]} 28. Rxb1 {[%emt 0:01:15]} b4 {[%emt 0:00:08]} 29. Kf1 {[%emt 0:00:29]} Ke6 {[%emt 0:00:52]} 30. h3 {[%emt 0:02:06]} g5 {[%emt 0:10:30]} 31. Ke2 {[%emt 0:00:19]} Nf5 {[%emt 0:00:27]} 32. Kd3 {[%emt 0:01:03]} h4 {[%emt 0:01:01]} 33. g4 {[%emt 0:06:17]} Ne7 {[%emt 0:00:16]} 34. Bd2 {[%emt 0:01:57]} Nc6 {[%emt 0:04:01]} 35. Ra1 {[%emt 0:03:02]} Kd7 {[%emt 0:08:22]} 36. Ra8 {[%emt 0:04:39]} Bb8 {[%emt 0:00:30]} 37. Ra6 {[%emt 0:01:35]} Bc7 {[%emt 0:00:55]} 38. Ra8 {[%emt 0:00:52]} Bb8 {[%emt 0:00:11]} 39. Be1 {[%emt 0:02:43]} Ba7 {[%emt 0:03:46]} 40. f4 {[%emt 0:01:44]} gxf4 {[%emt 0:00:36]} 41. Rxa7+ {[%emt 0:27:29]} Nxa7 {[%emt 0:05:54]} 42. Bxb4 {[%emt 0:00:03]} Nb5 {[%emt 0:12:29]} 43. Be1 {[%emt 0:02:22]} f5 {[%emt 0:16:29]} 44. Bxh4 {[%emt 0:06:47]} fxg4 {[%emt 0:00:25]} 45. hxg4 {[%emt 0:00:03]} Nc7 {[%emt 0:01:10]} 46. Bf6 {[%emt 0:00:27]} Ne6 {[%emt 0:00:29]} 47. Be5 {[%emt 0:00:11]} Ke7 {[%emt 0:01:05]} 1/2-1/2

[Event "Swiss National League-A 2024"]
[Site "Luzern"]
[Date "2024.10.13"]
[Round "9.40"]
[White "Maeser, Fabian"]
[Black "Gantner, Matthias"]
[Result "1/2-1/2"]
[ECO "B51"]
[WhiteElo "2268"]
[BlackElo "2284"]
[Annotator "RC"]
[PlyCount "62"]
[EventDate "2023.10.03"]
[EventType "team-tourn"]
[EventCountry "SUI"]
[SourceTitle "playchess.com"]
[Source "ChessBase"]
[SourceQuality "1"]
[TimeControl "40/8400+30:20/3000+30:900+30"]

1. e4 {[%emt 0:40:18]} c5 {[%emt 0:42:49]} 2. Nf3 {[%emt 0:03:14]} d6 {[%emt 0:00:05]} 3. Bb5+ {[%emt 0:00:39]} Nd7 {[%emt 0:00:07]} 4. c3 {[%emt 0:01:19]} Ngf6 {[%emt 0:05:52]} 5. Qe2 {[%emt 0:00:43]} a6 {[%emt 0:00:20]} 6. Ba4 {[%emt 0:00:18]} b5 {[%emt 0:01:48]} 7. Bc2 {[%emt 0:00:24]} Bb7 {[%emt 0:06:23]} 8. d4 {[%emt 0:03:48]} g6 {[%emt 0:03:06]} 9. O-O {[%emt 0:05:25]} Bg7 {[%emt 0:02:51]} 10. Re1 {[%emt 0:03:36]} O-O {[%emt 0:05:43]} 11. Nbd2 {[%emt 0:12:06]} e5 {[%emt 0:09:04]} 12. d5 {[%emt 0:11:31]} c4 {[%emt 0:00:48]} 13. b3 {[%emt 0:01:08]} cxb3 {[%emt 0:05:37]} 14. axb3 {[%emt 0:02:07]} Qb8 {[%emt 0:07:55]} 15. Ba3 {[%emt 0:13:51]} Rc8 {[%emt 0:00:29]} 16. Bb4 {[%emt 0:01:18]} Nh5 {[%emt 0:04:07]} 17. g3 {[%emt 0:02:10]} Bf6 {[%emt 0:04:02]} 18. Ba5 {[%emt 0:07:43]} Bd8 {[%emt 0:10:24]} 19. Bxd8 {[%emt 0:00:33]} Rxd8 {[%emt 0:00:03]} 20. b4 {[%emt 0:01:45]} Bc8 {[%emt 0:02:38]} 21. Bd3 {[%emt 0:06:47]} Nb6 {[%emt 0:02:56]} 22. Rec1 {[%emt 0:02:24]} Bd7 {[%emt 0:02:30]} 23. Rab1 {[%emt 0:02:32]} Nf6 {[%emt 0:03:07]} 24. Nb3 {[%emt 0:05:16]} Ra7 {[%emt 0:01:19]} 25. Na5 {[%emt 0:02:01]} Rc8 {[%emt 0:02:20]} 26. Rc2 {[%emt 0:04:09]} Nc4 {[%emt 0:05:22]} 27. Bxc4 {[%emt 0:01:35]} bxc4 {[%emt 0:00:05]} 28. Nd2 {[%emt 0:00:18]} Bb5 {[%emt 0:00:22]} 29. Qe3 {[%emt 0:02:10]} Kg7 {[%emt 0:01:05]} 30. Rf1 {[%emt 0:02:18]} Re7 {[%emt 0:04:27]} 31. f3 {[%emt 0:01:45]} Qc7 {[%emt 0:04:12]} 1/2-1/2